bitfinex/quotes_ETHUSD_20250129
["timestamp","ask_amount","ask_price","bid_price","bid_amount"]
[1738122988496,2.23743,3128.6,3128.0,2.23779]
[1738122988701,2.23726,3128.9,3128.2,2.2377]
[1738122988921,2.23719,3129.0,3128.4,0.7869]
[1738122989120,2.23708,3129.1,3128.5,2.23749]
[1738122989524,2.23708,3129.1,3128.6,0.03150243]
[1738122992038,2.23726,3128.9,3128.6,0.03150243]
[1738122992406,2.23726,3128.9,3128.4,0.7869]
[1738122992854,2.23726,3128.9,3128.5,0.03092016]
[1738122994468,3.55,3129.0,3128.5,0.03092016]
[1738122994623,2.23742,3128.6,3128.5,0.03092016]
[1738122994832,6.56552,3128.6,3128.5,0.03092016]
[1738122995171,2.23778,3128.1,3127.7,0.7759]
[1738122995521,2.23778,3128.1,3127.8,0.02891429]
[1738122995961,2.23778,3128.1,3127.7,0.7759]
[1738122996309,2.23778,3128.1,3127.8,0.02891429]
[1738122996534,2.23778,3128.1,3127.7,0.7759]
[1738122996859,2.23778,3128.1,3127.8,0.02891429]
[1738122997060,2.23758,3128.4,3127.8,0.02891429]
[1738122997212,2.23747,3128.6,3127.9,2.23792]
[1738122997414,2.23747,3128.6,3128.1,0.806]
[1738122997855,2.23747,3128.6,3128.2,0.02918831]
[1738122998061,2.23727,3128.8,3128.2,0.02918831]
[1738122998379,2.23713,3129.0,3128.3,3.04799]
[1738122998876,2.23713,3129.0,3128.3,3.34625184]
[1738122999025,2.23713,3129.0,3128.4,0.02918831]
[1738123000229,3.0,3129.1,3128.4,0.02918831]
[1738123000438,2.2372,3128.9,3128.4,0.02918831]
[1738123000631,2.2371,3129.1,3128.6,0.7777]
[1738123000827,2.23683,3129.5,3128.8,2.23727]
[1738123001027,2.23683,3129.5,3128.9,0.7777]
[1738123001282,2.23685,3129.4,3128.9,0.80653209]
[1738123001433,2.23694,3129.3,3128.9,0.80653209]
[1738123001633,2.237,3129.2,3128.9,0.80653209]
[1738123003280,2.23711,3129.1,3128.9,0.80653209]
[1738123003583,2.23713,3129.0,3128.9,0.02883209]
[1738123003938,2.23713,3129.0,3128.5,0.7865]
[1738123004133,2.23713,3129.0,3128.6,0.32686572]
[1738123004765,4.47375,3129.4,3128.7,0.7709]
[1738123005068,2.23692,3129.3,3128.7,0.80285841]
[1738123005230,2.23692,3129.3,3128.8,0.02883209]
[1738123005634,2.23692,3129.3,3128.7,0.7709]
[1738123005935,2.23692,3129.3,3128.8,0.29803363]
[1738123006147,2.23692,3129.3,3128.9,0.02883209]
[1738123006433,2.23685,3129.4,3128.9,0.02883209]
[1738123007044,2.23693,3129.3,3128.7,0.7709]
[1738123007243,2.23699,3129.2,3129.0,0.02855816]
[1738123007445,4.47375,3129.4,3128.7,3.9689]
[1738123007646,2.23693,3129.3,3129.1,0.02855816]
[1738123007849,2.23693,3129.3,3128.8,0.2978298]
[1738123008372,2.23693,3129.3,3128.9,0.02855816]
[1738123009036,2.23685,3129.4,3128.9,0.02855816]
[1738123009240,2.23706,3129.1,3128.9,0.02855816]
[1738123009865,2.23706,3129.1,3128.7,0.7709]
[1738123010065,2.23706,3129.1,3129.0,0.02855816]
[1738123010373,2.23706,3129.1,3128.7,0.7709]
[1738123010567,2.843535,3129.3,3128.7,0.7709]
[1738123010750,2.23713,3129.0,3128.7,0.7709]
[1738123010950,2.23713,3129.0,3128.8,0.02855816]
[1738123011150,2.23713,3129.0,3128.7,0.7709]
[1738123011351,2.23713,3129.0,3128.8,0.02855816]
[1738123011578,2.23713,3129.0,3128.7,0.7709]
[1738123011738,2.23713,3129.0,3128.8,0.02855816]
[1738123012075,2.23713,3129.0,3128.7,0.7709]
[1738123012275,2.23713,3129.0,3128.9,0.02830476]
[1738123012776,2.23713,3129.0,3128.7,0.7709]
[1738123012963,2.23713,3129.0,3128.8,0.02830476]
[1738123013269,2.23713,3129.0,3128.7,0.7709]
[1738123013478,2.23713,3129.0,3128.2,2.4937]
[1738123013479,3.368,3133.7,3129.6,0.55]
[1738123013641,0.7943,3134.1,3132.3,0.99868985]
[1738123013843,0.7943,3134.1,3132.9,0.1999964]
[1738123013844,2.23372,3133.8,3132.9,0.1999964]
[1738123014143,3.0278,3134.1,3132.9,2.53433985]
[1738123014337,0.7943,3134.1,3132.9,3.56027383]
[1738123014674,0.7943,3134.1,3132.9,6.89326944]
[1738123014874,2.23334,3134.4,3132.9,16.1194684]
[1738123015176,0.7558,3134.6,3133.3,3.30654985]
[1738123015480,2.2329,3135.0,3134.1,0.29998985]
[1738123015771,3.0,3134.8,3134.0,0.09999345]
[1738123016073,2.98916,3134.3,3133.7,0.29998985]
[1738123016249,0.7558,3134.3,3133.7,0.29998985]
[1738123016739,2.98916,3134.3,3133.7,0.29998985]
[1738123017767,0.7558,3134.3,3133.7,0.29998985]
[1738123018093,2.23344,3134.2,3133.7,0.29998985]
[1738123018296,0.298924,3134.1,3133.7,0.29998985]
[1738123018898,2.23336,3134.3,3133.7,0.29998985]
[1738123019674,5.23322,3134.5,3133.7,0.29998985]
[1738123020249,2.23342,3134.3,3133.7,0.29998985]
[1738123020594,2.23349,3134.1,3133.5,0.1999964]
[1738123020799,2.23371,3133.8,3133.5,0.1999964]
[1738123021445,2.23385,3133.6,3133.2,0.09999345]
[1738123021679,2.23392,3133.5,3133.2,0.09999345]
[1738123022079,3.0,3133.7,3133.2,0.29998985]
[1738123022641,5.23384,3133.7,3133.2,0.29998985]
[1738123022871,0.826045,3133.6,3133.2,0.29998985]
[1738123023486,1.5700289,3136.4,3132.9,2.98631]
[1738123023487,0.7646,3134.6,3133.6,0.1999964]
[1738123023646,2.23337,3134.3,3133.8,0.1999964]
[1738123023998,2.23384,3133.7,3133.3,0.09999345]
[1738123024686,2.23384,3133.7,3133.4,0.1999964]
[1738123025041,0.7646,3133.8,3133.4,0.1999964]
[1738123025264,2.23387,3133.6,3133.4,0.1999964]
[1738123025461,0.223387,3133.5,3133.4,0.1999964]
[1738123028610,2.2338,3133.7,3133.4,0.1999964]
[1738123030675,2.23392,3133.5,3133.4,0.1999964]
[1738123030871,2.23392,3133.5,3133.0,0.29998985]
[1738123030872,2.23406,3133.3,3133.0,0.29998985]
[1738123031203,0.7646,3133.8,3133.0,0.1999964]
[1738123031204,2.457546,3133.2,3133.0,0.1999964]
[1738123031405,2.457546,3133.2,3132.8,0.29998985]
[1738123031587,2.23422,3133.1,3132.8,0.29998985]
[1738123032704,2.23422,3133.1,3132.4,2.23469]
[1738123032705,2.2345,3132.7,3132.3,0.29998985]
[1738123032908,2.45801,3132.6,3132.3,0.29998985]
[1738123033205,2.23456,3132.6,3132.5,0.1999964]
[1738123033797,2.23456,3132.6,3132.3,0.29998985]
[1738123034173,2.23442,3132.8,3132.3,0.29998985]
[1738123034598,2.23442,3132.8,3132.5,0.1999964]
[1738123034799,2.23456,3132.6,3132.5,0.1999964]
[1738123035365,2.23456,3132.6,3132.3,0.09999345]
[1738123035366,2.23456,3132.6,3132.3,0.29998985]
[1738123035532,2.23465,3132.5,3132.3,0.29998985]
[1738123037577,0.223442,3132.7,3132.3,0.1999964]
[1738123037744,2.2347,3132.4,3132.3,0.1999964]
[1738123038167,2.23456,3132.6,3132.1,0.29998985]
[1738123038488,2.23478,3132.3,3132.1,0.29998985]
[1738123038682,3.03981,3133.1,3132.6,0.29998985]
[1738123038889,0.3263216,3133.0,3132.6,0.29998985]
[1738123040286,3.0,3133.2,3132.9,0.09999345]
[1738123040454,2.23408,3133.3,3132.9,0.09999345]
[1738123040974,2.23415,3133.2,3132.9,0.09999345]
[1738123041178,2.23422,3133.1,3132.9,0.09999345]
[1738123041548,2.23408,3133.3,3132.9,0.09999345]
[1738123041872,0.523408,3133.2,3132.9,0.09999345]
[1738123042548,2.23423,3133.1,3132.9,0.09999345]
[1738123044079,5.757558,3133.2,3132.9,0.09999345]
[1738123044287,2.23393,3133.5,3133.2,0.09999345]
[1738123044983,2.23399,3133.4,3133.3,0.29641954]
[1738123049496,2.680776,3133.4,3133.3,0.29641954]
[1738123058279,3.459476,3133.4,3133.3,0.29641954]
[1738123059483,2.2342,3133.1,3133.0,0.29998985]
[1738123063694,2.23392,3133.5,3133.2,0.09999345]
[1738123063907,2.23399,3133.4,3133.2,0.09999345]
[1738123064279,2.23391,3133.6,3133.2,0.09999345]
[1738123064479,2.23356,3134.1,3133.8,0.1999964]
[1738123065091,2.23357,3134.0,3133.8,0.1999964]
[1738123065334,2.23363,3133.9,3133.8,0.1999964]
[1738123065592,2.680343,3133.9,3133.8,0.1999964]
[1738123065913,2.23363,3133.9,3133.8,0.1999964]
[1738123067411,2.2335,3134.1,3133.8,0.1999964]
[1738123067712,2.2335,3134.1,3133.9,0.09999345]
[1738123067916,2.23356,3134.0,3133.9,0.09999345]
[1738123068720,2.2337,3133.8,3133.7,0.09999345]
[1738123068896,2.45707,3133.8,3133.7,0.09999345]
[1738123071780,2.45707,3133.8,3133.6,0.1999964]
[1738123071980,2.45707,3133.8,3133.7,0.09999345]
[1738123072430,2.23378,3133.7,3133.6,0.1999964]
[1738123075083,0.22337,3133.8,3133.7,0.09999345]
[1738123075333,2.45707,3133.8,3133.7,0.09999345]
[1738123075517,2.45707,3133.8,3133.6,0.1999964]
[1738123075719,2.23385,3133.6,3133.5,0.09999345]
[1738123079633,2.23365,3133.9,3133.7,0.09999345]
[1738123080542,3.7514,3134.2,3133.7,0.09999345]
[1738123080703,2.2337,3133.8,3133.7,0.09999345]
[1738123080898,2.23378,3133.7,3133.6,0.1999964]
[1738123081118,2.23385,3133.6,3133.5,0.09999345]
[1738123082411,2.45715,3133.7,3133.5,0.09999345]
[1738123083541,2.2333,3134.4,3134.0,0.09999345]
[1738123083705,3.30354,3134.9,3134.5,0.09999345]
[1738123083907,0.29887,3134.9,3134.8,0.09999345]
[1738123084114,0.29887,3134.9,3134.6,0.29998985]
[1738123084319,2.23302,3134.8,3134.6,0.29998985]
[1738123084627,2.23306,3134.7,3134.6,0.29998985]
[1738123084823,2.23321,3134.5,3134.4,0.1999964]
[1738123085210,2.23335,3134.3,3134.2,0.09999345]
[1738123087648,2.23369,3133.9,3133.7,0.29998985]
[1738123087948,2.2337,3133.8,3133.7,0.29998985]
[1738123093660,2.23357,3134.0,3133.7,0.29998985]
[1738123094218,2.23346,3134.2,3134.0,0.09999345]
[1738123095861,2.23349,3134.1,3134.0,0.09999345]
[1738123096261,2.680185,3134.1,3134.0,0.09999345]
[1738123096626,2.680185,3134.1,3133.9,0.1999964]
[1738123096832,2.23363,3133.9,3133.8,0.09999345]
[1738123098759,2.23363,3133.9,3133.7,0.1999964]
[1738123099062,2.2337,3133.8,3133.7,0.1999964]
[1738123099272,2.762723,3133.8,3133.7,0.1999964]
[1738123100541,2.762723,3133.8,3133.6,0.09999345]
[1738123100542,2.23378,3133.7,3133.6,0.09999345]
[1738123103444,2.23364,3133.9,3133.8,0.09999345]
[1738123104277,2.680355,3133.9,3133.8,0.09999345]
[1738123106791,3.0028,3133.8,3133.7,0.1999964]
[1738123107585,2.2337,3133.8,3133.7,0.1999964]
[1738123107955,2.23378,3133.7,3133.6,0.09999345]
[1738123116001,2.23385,3133.6,3133.5,0.1999964]
[1738123116206,2.680613,3133.6,3133.5,0.1999964]
[1738123116795,2.23392,3133.5,3133.4,0.09999345]
[1738123118314,2.23406,3133.3,3133.2,0.09999345]
[1738123123606,2.23413,3133.2,3132.9,0.29998985]
[1738123123806,2.23428,3133.0,3132.9,0.29998985]
[1738123124020,2.23428,3133.0,3132.9,0.09999345]
[1738123124374,2.23428,3133.0,3132.7,0.09999345]
[1738123124375,2.23442,3132.8,3132.7,0.09999345]
[1738123124771,2.23442,3132.8,3132.6,0.1999964]
[1738123124772,2.23449,3132.7,3132.6,0.1999964]
[1738123127073,2.23449,3132.7,3132.5,0.09999345]
[1738123127276,2.458009,3132.6,3132.5,0.09999345]
[1738123129788,2.23463,3132.5,3132.3,0.09999345]
[1738123129993,2.2347,3132.4,3132.3,0.09999345]
[1738123131696,2.23492,3132.1,3132.0,0.09999345]
[1738123135021,2.681896,3132.1,3132.0,0.09999345]
[1738123137519,2.23499,3132.0,3131.7,0.09999345]
[1738123137717,2.23513,3131.8,3131.7,0.09999345]
[1738123144325,2.23499,3132.0,3131.9,0.09999345]
[1738123145834,2.23513,3131.8,3131.7,0.09999345]
[1738123150739,2.23527,3131.6,3131.5,0.29998985]
[1738123151700,2.23513,3131.8,3131.7,0.89949345]
[1738123155043,2.23513,3131.8,3131.7,1.09948985]
[1738123159659,2.23513,3131.8,3131.7,0.29998985]
[1738123166346,2.986379,3131.8,3131.7,0.29998985]
[1738123170042,2.23501,3132.0,3131.9,0.29998985]
[1738123170229,3.02714,3132.3,3131.9,0.29998985]
[1738123170230,2.23484,3132.3,3132.2,0.09999345]
[1738123170632,2.23492,3132.1,3132.0,0.09999345]
[1738123181861,2.23492,3132.1,3131.9,0.1999964]
[1738123182066,2.23492,3132.1,3131.7,0.29998985]
[1738123182067,2.23513,3131.8,3131.7,0.29998985]
[1738123183697,2.2348,3132.3,3132.1,0.29998985]
[1738123184693,2.23472,3132.4,3132.1,0.29998985]
[1738123184892,2.23472,3132.4,3132.3,0.1999964]
[1738123199392,2.23472,3132.4,3132.3,0.29998985]
[1738123201416,2.23459,3132.6,3132.5,0.1999964]
[1738123202223,2.23459,3132.6,3132.5,0.29998985]
[1738123203626,2.681493,3132.6,3132.5,0.29998985]
[1738123204618,2.23459,3132.6,3132.5,1.07908985]
[1738123204922,4.016813,3133.1,3132.9,0.29998985]
[1738123204923,2.23433,3133.0,3132.9,0.29998985]
[1738123205324,2.23442,3132.8,3132.7,0.29998985]
[1738123207124,2.23433,3133.0,3132.9,0.29998985]
[1738123208329,2.23417,3133.2,3133.1,0.09999345]
[1738123209798,2.23417,3133.2,3133.1,0.29998985]
[1738123210428,2.23442,3132.8,3132.7,0.29998985]
[1738123210644,2.23442,3132.8,3132.7,0.09999345]
[1738123210799,2.23456,3132.6,3132.5,0.29998985]
[1738123214441,3.64843068,3133.3,3133.1,0.09999345]
[1738123214442,3.0,3133.3,3133.1,0.09999345]
[1738123214645,2.23264,3135.3,3133.3,0.29998985]
[1738123214646,2.23399,3133.4,3133.3,0.29998985]
[1738123214941,2.23379,3133.7,3133.6,0.09999345]
[1738123222362,2.23392,3133.5,3133.2,0.09999345]
[1738123222525,2.23406,3133.3,3133.0,0.09999345]
[1738123222725,2.2342,3133.1,3133.0,0.09999345]
[1738123223137,2.23435,3132.9,3132.8,0.29998985]
[1738123223962,2.23449,3132.7,3132.6,0.09999345]
[1738123224525,2.2347,3132.4,3132.3,0.1999964]
[1738123224725,2.23492,3132.1,3132.0,0.53589247]
[1738123225256,2.23492,3132.1,3132.0,0.1999964]
[1738123227063,2.23492,3132.1,3131.8,0.1999964]
[1738123227263,2.23506,3131.9,3131.8,0.29998985]
[1738123229070,2.23492,3132.1,3132.0,0.09999345]
[1738123229670,2.23492,3132.1,3132.0,0.29998985]
[1738123236278,2.23492,3132.1,3132.0,0.09999345]
[1738123236473,2.681891,3132.1,3132.0,0.09999345]
[1738123237675,5.681891,3132.1,3132.0,0.09999345]
[1738123238545,2.23506,3131.9,3131.8,0.29998985]
[1738123238945,3.06446,3131.9,3131.8,0.09999345]
[1738123239187,3.06446,3131.9,3131.8,0.29998985]
[1738123240781,3.9390951,3131.9,3131.8,0.29998985]
[1738123241478,3.9390951,3131.9,3131.8,0.09999345]
[1738123241657,3.9390951,3131.9,3131.6,0.29998985]
[1738123241658,2.2352,3131.7,3131.6,0.29998985]
[1738123242053,2.2352,3131.7,3131.6,0.09999345]
[1738123242453,2.23535,3131.5,3131.4,0.29998985]
[1738123243984,2.682405,3131.5,3131.4,0.09999345]
[1738123244157,2.23563,3131.1,3130.8,0.1999964]
[1738123244358,2.23563,3131.1,3130.8,0.29998985]
[1738123244563,2.23563,3131.1,3130.8,0.09999345]
[1738123244564,2.98657,3130.9,3130.8,0.09999345]
[1738123245317,2.98657,3130.9,3130.6,0.29998985]
[1738123245318,2.23592,3130.7,3130.6,0.29998985]
[1738123245588,2.23592,3130.7,3130.4,0.09999345]
[1738123245589,2.23606,3130.5,3130.4,0.09999345]
[1738123246186,2.2362,3130.3,3130.2,0.09999345]
[1738123248149,2.23606,3130.5,3130.4,0.09999345]
[1738123248393,2.23606,3130.5,3130.4,0.29998985]
[1738123251765,2.23579,3130.9,3130.8,0.1999964]
[1738123252163,2.23573,3131.0,3130.9,0.09999345]
[1738123252858,2.21975786,3131.0,3130.9,0.09999345]
[1738123254393,2.23557,3131.2,3131.1,0.09999345]
[1738123254692,2.23533,3131.6,3131.5,0.09999345]
[1738123257192,3.06833,3131.6,3131.3,0.09999345]
[1738123257388,2.23542,3131.4,3131.3,0.09999345]
[1738123260206,2.23549,3131.3,3131.2,0.1999964]
[1738123262676,2.23556,3131.2,3131.1,0.09999345]
[1738123262876,2.23556,3131.2,3131.0,0.1999964]
[1738123263221,2.23592,3130.7,3130.6,0.09999345]
[1738123265384,3.00062,3130.7,3130.6,0.09999345]
[1738123271645,2.23592,3130.7,3130.6,0.09999345]
[1738123273223,2.23584,3130.9,3130.8,0.09999345]
[1738123273983,3.0,3131.0,3130.8,0.09999345]
[1738123274209,3.0,3131.0,3130.6,0.7936]
[1738123274210,2.2355,3131.3,3131.0,0.09999345]
[1738123274421,2.2355,3131.3,3130.6,0.7936]
[1738123274422,2.23537,3131.5,3131.4,0.29998985]
[1738123274589,2.23522,3131.7,3131.6,0.09999345]
[1738123275618,2.23522,3131.7,3131.6,0.29998985]
[1738123279148,2.23508,3131.9,3131.8,0.09999345]
[1738123279497,2.23508,3131.9,3131.8,0.29998985]
[1738123280432,2.23493,3132.1,3132.0,0.09999345]
[1738123281139,6.446707,3132.1,3132.0,0.09999345]
[1738123281301,2.23506,3131.9,3131.8,0.29998985]
[1738123284910,2.23506,3131.9,3131.8,0.09999345]
[1738123285111,2.23506,3131.9,3131.5,0.09999345]
[1738123285112,2.23527,3131.6,3131.5,0.09999345]
[1738123285311,2.737317,3131.6,3131.5,0.09999345]
[1738123285658,2.23535,3131.5,3131.4,0.1999964]
[1738123286007,6.56935,3131.5,3131.4,0.1999964]
[1738123286221,2.23556,3131.2,3131.1,0.09999345]
[1738123287170,2.78556,3131.2,3131.1,0.09999345]
[1738123287449,4.071664,3131.2,3131.1,0.09999345]
[1738123287626,2.737664,3131.2,3131.1,0.09999345]
[1738123289150,2.23556,3131.2,3131.1,0.09999345]
[1738123289820,2.78556,3131.2,3131.1,0.09999345]
[1738123292755,2.2357,3131.0,3130.9,0.09999345]
[1738123292924,3.056,3131.0,3130.9,0.09999345]
[1738123294323,6.606,3131.0,3130.9,0.09999345]
[1738123294540,7.490156,3131.0,3130.9,0.09999345]
[1738123298303,2.23592,3130.7,3130.6,0.09999345]
[1738123299383,5.78592,3130.7,3130.6,0.09999345]
[1738123299963,6.61202,3130.7,3130.6,0.09999345]
[1738123301850,2.23606,3130.5,3130.4,0.09999345]
[1738123302044,2.2362,3130.3,3130.2,0.09999345]
[1738123302249,5.7862,3130.3,3130.2,0.09999345]
[1738123302863,2.23635,3130.1,3130.0,0.09999345]
[1738123303110,3.121245,3130.1,3130.0,0.09999345]
[1738123303546,3.671245,3130.1,3130.0,0.09999345]
[1738123303888,2.23649,3129.9,3129.8,0.09999345]
[1738123304084,2.78649,3129.9,3129.8,0.09999345]
[1738123307685,2.78649,3129.9,3129.6,0.09999345]
[1738123307686,2.23663,3129.7,3129.6,0.09999345]
[1738123307872,2.738942,3129.7,3129.6,0.09999345]
[1738123308275,3.553042,3129.7,3129.6,0.09999345]
[1738123308656,4.103042,3129.7,3129.6,0.09999345]
[1738123310755,2.23677,3129.5,3129.4,0.09999345]
[1738123312768,2.23565174,3129.5,3129.4,0.09999345]
[1738123314389,2.87995886,3129.5,3129.4,0.09999345]
[1738123314793,3.42995886,3129.5,3129.4,0.09999345]
[1738123315094,2.23692,3129.3,3129.2,0.09999345]
[1738123322596,2.23692,3129.3,3129.2,0.89369345]
[1738123322990,2.23692,3129.3,3129.2,0.09999345]
[1738123323185,2.98837117,3129.3,3129.2,0.09999345]
[1738123323390,2.23692,3129.3,3129.2,0.09999345]
[1738123324299,2.23692,3129.3,3129.2,0.85059345]
[1738123325675,2.23692,3129.3,3129.2,0.09999345]
[1738123331481,2.78692,3129.3,3129.2,0.09999345]
[1738123331671,3.56892,3129.3,3129.2,0.09999345]
[1738123331874,4.37306117,3129.3,3129.2,0.09999345]
[1738123332088,7.37306117,3129.3,3129.2,0.09999345]
[1738123333224,2.78706,3129.1,3129.0,0.09999345]
[1738123333423,5.78706,3129.1,3129.0,0.09999345]
[1738123333821,5.78706,3129.1,3127.2,3.20391435]
[1738123333822,6.5692,3128.9,3128.8,0.09999345]
[1738123334124,7.804826,3128.9,3128.8,0.09999345]
[1738123335331,2.23735,3128.7,3128.4,0.09999345]
[1738123335529,2.23735,3128.7,3127.9,0.7664]
[1738123335530,2.23749,3128.5,3127.9,0.7664]
[1738123335883,2.23785,3128.0,3127.9,0.86639345]
[1738123337390,2.78785,3128.0,3127.9,3.45e-06]
[1738123337595,2.23813,3127.6,3127.5,0.7535]
[1738123337815,2.23813,3127.6,3127.1,0.005]
[1738123337816,2.23835,3127.3,3127.2,0.787]
[1738123339398,2.23842,3127.2,3127.1,0.005]
[1738123340401,2.23885,3126.6,3126.5,0.7634]
[1738123343014,2.23877,3126.8,3126.5,0.7634]
[1738123343226,2.23857,3127.0,3126.5,0.7634]
[1738123343537,2.23857,3127.0,3126.1,2.23921]
[1738123343538,2.23857,3127.0,3126.6,0.7602]
[1738123344325,2.23871,3126.8,3126.6,0.7602]
[1738123344716,2.23878,3126.7,3126.6,0.7602]
[1738123345628,2.23885,3126.6,3125.8,0.7783]
[1738123345802,2.23917,3126.2,3125.8,0.7783]
[1738123347237,2.23917,3126.2,3125.9,0.03198756]
[1738123347438,2.23917,3126.2,3126.0,0.8196]
[1738123350037,2.23897,3126.5,3126.0,0.8196]
[1738123351046,2.23912,3126.3,3126.0,0.8196]
[1738123351844,2.23897,3126.5,3126.0,0.8196]
[1738123352148,2.23897,3126.5,3126.2,0.8008]
[1738123352539,2.23886,3126.6,3126.2,0.8008]
[1738123353150,2.23886,3126.6,3126.2,0.83278418]
[1738123353819,2.23892,3126.5,3126.2,0.8008]
[1738123356324,2.23879,3126.7,3126.2,0.8008]
[1738123356638,2.23861,3127.0,3126.5,0.7851]
[1738123356840,2.23861,3127.0,3126.6,0.7851]
[1738123357821,2.23865,3126.9,3126.6,0.7851]
[1738123358021,2.23861,3127.0,3126.6,0.7851]
[1738123358947,2.23866,3126.9,3126.6,0.7851]
[1738123359577,2.23866,3126.9,3126.6,1.18361]
[1738123360165,2.23861,3127.0,3126.6,1.18361]
[1738123360542,2.23865,3126.9,3126.6,0.7851]
[1738123362829,2.23871,3126.8,3126.6,0.7851]
[1738123365827,2.23871,3126.8,3126.7,0.29696771]
[1738123367366,2.2383,3127.4,3126.8,0.8306]
[1738123367578,2.2383,3127.4,3127.0,0.8306]
[1738123367864,2.23835,3127.3,3127.0,0.8306]
[1738123368060,2.23835,3127.3,3127.1,0.23767893]
[1738123368230,2.23835,3127.3,3127.1,0.53464664]
[1738123368431,2.23842,3127.2,3127.1,0.53464664]
[1738123369234,2.23842,3127.2,3127.1,0.29696771]
[1738123369538,2.23856,3127.0,3126.9,0.29709921]
[1738123369747,2.23856,3127.0,3126.8,0.8005]
[1738123371281,2.23842,3127.2,3126.8,0.8005]
[1738123372169,2.23842,3127.2,3126.9,0.29716984]
[1738123372356,2.23842,3127.2,3126.9,0.53490683]
[1738123373243,2.23842,3127.2,3127.0,0.2971587]
[1738123374747,2.23842,3127.2,3126.8,0.8005]
[1738123374944,2.23851,3127.1,3126.8,0.8005]
[1738123375859,2.23851,3127.1,3126.9,0.29714741]
[1738123376752,2.2384,3127.3,3126.9,0.29714741]
[1738123377476,2.2384,3127.3,3126.8,0.8324782]
[1738123377698,2.2384,3127.3,3126.8,1.43960902]
[1738123378096,2.2384,3127.3,3126.9,0.2377158]
[1738123378449,2.2384,3127.3,3127.0,0.29714211]
[1738123378779,2.23804,3127.8,3127.1,3.05210787]
[1738123378979,2.23792,3127.9,3127.2,2.2384]
[1738123379283,2.23792,3127.9,3127.3,0.03197282]
[1738123379648,2.238,3127.8,3127.4,0.29714211]
[1738123380045,2.238,3127.8,3127.4,0.32911516]
[1738123380252,2.23787,3128.0,3127.5,0.815]
[1738123380460,2.23794,3127.9,3127.5,0.815]
[1738123380663,2.23803,3127.8,3127.5,0.815]
[1738123380922,2.23814,3127.6,3127.4,0.29714211]
[1738123381384,2.23786,3128.0,3127.4,0.29714211]
[1738123381685,2.23773,3128.2,3127.6,0.7965]
[1738123381882,2.23758,3128.4,3127.8,0.7965]
[1738123382182,0.55,3128.6,3126.8,3.09703836]
[1738123382368,0.55,3128.6,3127.5,0.23760344]
[1738123382369,2.23813,3127.6,3127.5,0.23760344]
[1738123383051,3.01613,3127.6,3127.5,0.23760344]
[1738123383251,2.23813,3127.6,3127.5,0.23760344]
[1738123383486,2.23827,3127.5,3126.9,0.81057625]
[1738123383686,2.23813,3127.6,3126.9,0.81057625]
[1738123384364,2.23813,3127.6,3126.9,0.7786]
[1738123384763,2.23829,3127.4,3126.9,0.7786]
[1738123384966,2.23829,3127.4,3126.9,1.08352765]
[1738123385170,2.23829,3127.4,3127.0,0.23770509]
[1738123386390,2.23829,3127.4,3126.9,1.08352765]
[1738123387691,2.23813,3127.6,3126.9,3.32212765]
[1738123387990,2.23811,3127.7,3127.0,6.26661]
[1738123388154,2.23811,3127.7,3127.0,3.94763277]
[1738123388351,2.23811,3127.7,3127.1,2.23844]
[1738123388622,2.23811,3127.7,3127.1,2.27041314]
[1738123389108,2.23811,3127.7,3127.1,2.23844]
[1738123389250,2.23829,3127.4,3127.0,0.8281]
[1738123389450,2.23825,3127.5,3127.0,0.8281]
[1738123390293,2.23808,3127.7,3127.1,0.03197663]
[1738123390462,2.23808,3127.7,3127.1,2.27045663]
[1738123390668,2.23808,3127.7,3127.1,2.23848]
[1738123391093,2.23815,3127.6,3127.2,0.23784129]
[1738123391460,2.23808,3127.7,3127.2,0.23784129]
[1738123392190,2.23808,3127.7,3127.3,0.7662]
[1738123392392,2.23808,3127.7,3127.3,1.00404129]
[1738123393292,2.23778,3128.1,3127.3,3.24232129]
[1738123393493,2.23778,3128.1,3127.5,0.7583]
[1738123394159,2.23765,3128.3,3127.5,0.7583]
[1738123394363,2.23787,3128.0,3127.7,0.8271]
[1738123394560,2.23804,3127.8,3127.2,0.8271]
[1738123394873,2.23803,3127.8,3127.6,0.23773736]
[1738123396198,2.23803,3127.8,3127.3,0.23773736]
[1738123396758,2.23785,3128.0,3127.3,0.23773736]
[1738123397000,0.8284,3128.6,3127.7,0.7522]
[1738123397205,2.23721,3128.9,3128.2,0.7522]
[1738123397206,3.06561,3128.9,3128.2,0.7522]
[1738123397386,2.23707,3129.1,3128.2,0.7522]
[1738123397387,2.23714,3129.0,3128.4,2.23756]
[1738123397567,0.530261,3129.0,3128.4,2.23756]
[1738123397768,0.530261,3129.0,3128.5,0.8179]
[1738123397983,2.23722,3128.9,3128.5,0.8179]
[1738123398195,0.8157,3129.3,3128.5,0.8179]
[1738123398196,2.23701,3129.2,3128.5,0.8179]
[1738123398397,2.23667,3129.7,3128.3,0.7641]
[1738123398398,2.23735,3128.7,3128.3,0.7641]
[1738123398596,2.23754,3128.5,3127.9,0.7641]
[1738123398894,2.23754,3128.5,3127.9,6.002]
[1738123399099,2.23739,3128.7,3128.0,2.26980736]
[1738123399302,2.23732,3128.8,3128.2,2.2377]
[1738123402102,2.23732,3128.8,3128.3,0.03196277]
[1738123403602,2.23732,3128.8,3128.2,2.2377]
[1738123403803,2.23732,3128.8,3128.2,2.76486028]
[1738123406505,2.23754,3128.5,3128.1,0.7641]
[1738123406873,2.23754,3128.5,3127.9,2.23792]
[1738123408126,2.23754,3128.5,3127.9,5.23792]
[1738123408409,2.23754,3128.5,3127.9,2.23792]
[1738123408815,2.23754,3128.5,3127.8,0.81356626]
[1738123409007,2.23758,3128.4,3127.8,0.7816]
[1738123409180,2.23758,3128.4,3127.8,3.9806]
[1738123409382,2.23754,3128.5,3127.8,3.05155682]
[1738123410414,2.23754,3128.5,3127.9,2.23787]
[1738123415123,3.01752,3128.6,3128.0,2.23784]
[1738123415420,2.23736,3128.7,3128.0,2.23784]
[1738123415726,2.23721,3128.9,3128.2,2.23767]
[1738123415895,2.23721,3128.9,3128.3,2.23763]